fUSD/lending_fUSD_20250530
["ID","MTS","AMOUNT","RATE_DAILY","PERIOD"]
[363140778,1748597445243,-1028.59,0.00021917,2]
[363140779,1748597445252,-604.59,0.00021917,2]
[363140780,1748597445262,-11466.81,0.00021917,2]
[363140781,1748597445271,-500.0,0.00021917,2]
[363140782,1748597445281,-420.0,0.00021917,2]
[363140783,1748597445291,-420.0,0.00021917,2]
[363140784,1748597445300,-1262.66,0.00021917,2]
[363140785,1748597445312,-3413.77,0.00021917,2]
[363140786,1748597445322,-3355.82,0.00021917,2]
[363140787,1748597445332,-500.0,0.00021917,2]
[363140788,1748597445343,-476.98,0.00021917,2]
[363140789,1748597445354,-1251.44,0.00021917,2]
[363140790,1748597445364,-513.97,0.00021917,2]
[363140791,1748597445373,-420.0,0.00021917,2]
[363140792,1748597445383,-1986.16,0.00021917,2]
[363140793,1748597445394,-420.0,0.00021917,2]
[363140794,1748597445403,-1912.2,0.00021917,2]
[363140795,1748597445413,-522.38,0.00021917,2]
[363140796,1748597445423,-420.0,0.00021917,2]
[363140797,1748597445433,-926.63,0.00021917,2]
[363140798,1748597445442,-500.0,0.00021917,2]
[363140799,1748597445452,-4777.0,0.00021917,2]
[363140800,1748597445461,-500.0,0.00021917,2]
[363140801,1748597445470,-7036.43,0.00021917,2]
[363140802,1748597445480,-877.64,0.00021917,2]
[363140803,1748597445490,-504.06406393,0.00021917,2]
[363140804,1748597445499,-1923.88,0.00021917,2]
[363140805,1748597445508,-1016.81,0.00021917,2]
[363140806,1748597445517,-947.39,0.00021917,2]
[363140807,1748597445527,-488.47,0.00021917,2]
[363140808,1748597445537,-2392.97,0.00021917,2]
[363140809,1748597445548,-500.0,0.00021917,2]
[363140810,1748597445560,-1357.67,0.00021917,2]
[363140811,1748597445569,-762.86,0.00021917,2]
[363140812,1748597445579,-420.0,0.00021917,2]
[363140813,1748597445588,-620.71,0.00021917,2]
[363140814,1748597445597,-1085.91,0.00021917,2]
[363140815,1748597445607,-1108.49,0.00021917,2]
[363140816,1748597445616,-1714.35,0.00021917,2]
[363140817,1748597445626,-8528.06,0.00021917,2]
[363140818,1748597445637,-582.01,0.00021917,2]
[363140819,1748597445656,-986.88,0.00021917,2]
[363140820,1748597445670,-4246.82,0.00021917,2]
[363140821,1748597445683,-634.84,0.00021917,2]
[363140822,1748597445693,-1724.6,0.00021917,2]
[363140823,1748597445703,-1830.22,0.00021917,2]
[363140824,1748597445712,-1877.11,0.00021917,2]
[363140825,1748597445722,-1572.41,0.00021917,2]
[363140826,1748597445732,-1035.27,0.00021917,2]
[363140827,1748597445742,-1392.46,0.00021917,2]
[363140828,1748597445751,-167.03626169,0.00021917,2]
[363140829,1748597445761,-518.21428543,0.00021917,2]
[363140830,1748597445770,-4293.89,0.00021917,2]
[363140831,1748597445780,-1390.96,0.00021917,2]
[363140832,1748597445789,-713.78,0.00021917,2]
[363140833,1748597445799,-2162.47,0.00021917,2]
[363140834,1748597445809,-420.0,0.00021917,2]
[363140835,1748597445818,-20663.19,0.00021917,2]
[363140836,1748597445828,-420.0,0.00021917,2]
[363140837,1748597445838,-1386.56,0.00021917,2]
[363140838,1748597445848,-688.75,0.00021917,2]
[363140839,1748597445858,-500.0,0.00021917,2]
[363140840,1748597445867,-2540.05,0.00021917,2]
[363140841,1748597445877,-860.33,0.00021917,2]
[363140842,1748597445887,-420.0,0.00021917,2]
[363140843,1748597445896,-10087.08,0.00021917,2]
[363140844,1748597445906,-13408.83,0.00021917,2]
[363140845,1748597445915,-1172.05,0.00021917,2]
[363140846,1748597445926,-1515.47,0.00021917,2]
[363140847,1748597445936,-855.59,0.00021917,2]
[363140848,1748597445945,-420.0,0.00021917,2]
[363140849,1748597445955,-420.0,0.00021917,2]
[363140850,1748597445964,-1515.73,0.00021917,2]
[363140851,1748597445974,-420.0,0.00021917,2]
[363140852,1748597445984,-697.03,0.00021917,2]
[363140853,1748597445994,-459.25,0.00021917,2]
[363140854,1748597446004,-620.28,0.00021917,2]
[363140855,1748597446015,-993.42,0.00021917,2]
[363140856,1748597446025,-420.0,0.00021917,2]
[363140857,1748597446035,-420.0,0.00021917,2]
[363140858,1748597446044,-1138.21,0.00021917,2]
[363140859,1748597446054,-4088.87,0.00021917,2]
[363140860,1748597446064,-420.0,0.00021917,2]
[363140861,1748597446074,-1223.73,0.00021917,2]
[363140862,1748597446083,-420.0,0.00021917,2]
[363140863,1748597446093,-864.7,0.00021917,2]
[363140864,1748597446102,-31417.21,0.00021917,2]
[363140865,1748597446112,-420.0,0.00021917,2]
[363140866,1748597446122,-723.44,0.00021917,2]
[363140867,1748597446132,-1049.91,0.00021917,2]
[363140868,1748597446141,-1012.71,0.00021917,2]
[363140869,1748597446151,-420.0,0.00021917,2]
[363140870,1748597446161,-7540.43,0.00021917,2]
[363140872,1748597446170,-3199.03,0.00021917,2]
[363140874,1748597446180,-420.0,0.00021917,2]
[363140876,1748597446190,-420.0,0.00021917,2]
[363140878,1748597446200,-489.66,0.00021917,2]
[363140880,1748597446209,-427.68,0.00021917,2]
[363140881,1748597446219,-775.23,0.00021917,2]
[363140883,1748597446229,-7296.93,0.00021917,2]
[363140885,1748597446238,-500.0,0.00021917,2]
[363140887,1748597446248,-4526.69,0.00021917,2]
[363140888,1748597446258,-420.0,0.00021917,2]
[363140889,1748597446268,-420.0,0.00021917,2]
[363140890,1748597446278,-1481.01,0.00021917,2]
[363140891,1748597446288,-2691.23,0.00021917,2]
[363140892,1748597446297,-1985.41,0.00021917,2]
[363140893,1748597446307,-2133.33,0.00021917,2]
[363140894,1748597446318,-540.20194575,0.00021917,2]
[363140895,1748597446328,-845.08,0.00021917,2]
[363140896,1748597446339,-656.15,0.00021917,2]
[363140897,1748597446353,-2526.26,0.00021917,2]
[363140898,1748597446363,-420.0,0.00021917,2]
[363140899,1748597446374,-698.4,0.00021917,2]
[363140900,1748597446385,-2924.79,0.00021917,2]
[363140901,1748597446395,-1474.1,0.00021917,2]
[363140902,1748597446405,-4250.45,0.00021917,2]
[363140903,1748597446414,-1224.66,0.00021917,2]
[363140904,1748597446425,-1024.48,0.00021917,2]
[363140905,1748597446435,-520.59,0.00021917,2]
[363140906,1748597446445,-420.0,0.00021917,2]
[363140907,1748597446455,-504.93249883,0.00021917,2]
[363140908,1748597446465,-1413.98,0.00021917,2]
[363140909,1748597446476,-1638.84,0.00021917,2]
[363140910,1748597446485,-671.42,0.00021917,2]
[363140911,1748597446495,-500.0,0.00021917,2]
[363140912,1748597446505,-1481.21,0.00021917,2]
[363140913,1748597446516,-420.0,0.00021917,2]
[363140914,1748597446526,-1723.84,0.00021917,2]
[363140915,1748597446536,-2990.68,0.00021917,2]
[363140916,1748597446546,-1114.73,0.00021917,2]
[363140917,1748597446556,-420.0,0.00021917,2]
[363140918,1748597446566,-1567.41,0.00021917,2]
[363140919,1748597446575,-681.58,0.00021917,2]
[363140920,1748597446585,-863.3,0.00021917,2]
[363140921,1748597446595,-595.89,0.00021917,2]
[363140922,1748597446604,-1547.86,0.00021917,2]
[363140923,1748597446614,-500.0,0.00021917,2]
[363140924,1748597446624,-3220.86,0.00021917,2]
[363140925,1748597446634,-420.0,0.00021917,2]
[363140926,1748597446644,-1234.04,0.00021917,2]
[363140927,1748597446654,-716.77,0.00021917,2]
[363140928,1748597446664,-1149.38,0.00021917,2]
[363140929,1748597446673,-742.78,0.00021917,2]
[363140930,1748597446683,-445.41,0.00021917,2]
[363140931,1748597446693,-420.0,0.00021917,2]
[363140932,1748597446703,-500.24,0.00021917,2]
[363140933,1748597446713,-1497.01,0.00021917,2]
[363140934,1748597446723,-690.04,0.00021917,2]
[363140935,1748597446733,-1023.95,0.00021917,2]
[363140936,1748597446742,-1765.85,0.00021917,2]
[363140937,1748597446752,-4652.85,0.00021917,2]
[363140938,1748597446762,-420.0,0.00021917,2]
[363140939,1748597446772,-420.0,0.00021917,2]
[363140940,1748597446782,-568.2,0.00021917,2]
[363140941,1748597446792,-420.0,0.00021917,2]
[363140942,1748597446802,-1089.14,0.00021917,2]
[363140943,1748597446812,-420.0,0.00021917,2]
[363140944,1748597446822,-420.0,0.00021917,2]
[363140945,1748597446832,-1484.06,0.00021917,2]
[363140946,1748597446842,-1748.35,0.00021917,2]
[363140947,1748597446852,-500.0,0.00021917,2]
[363140948,1748597446862,-3728.34,0.00021917,2]
[363140949,1748597446872,-476.00454792,0.00021917,2]
[363140950,1748597446882,-3634.22,0.00021917,2]
[363140951,1748597446892,-420.0,0.00021917,2]
[363140952,1748597446902,-2713.43,0.00021917,2]
[363140953,1748597446912,-420.0,0.00021917,2]
[363140954,1748597446922,-420.0,0.00021917,2]
[363140955,1748597446932,-420.0,0.00021917,2]
[363140956,1748597446942,-985.33,0.00021917,2]
[363140957,1748597446952,-261.87117425,0.00021917,2]
[363140958,1748597446961,-2690.27,0.00021917,2]
[363140959,1748597446971,-5761.14,0.00021917,2]
[363140960,1748597446980,-2205.06,0.00021917,2]
[363140961,1748597446990,-551.33,0.00021917,2]
[363140962,1748597447000,-420.0,0.00021917,2]
[363140963,1748597447011,-504.41909689,0.00021917,2]
[363140964,1748597447020,-1137.32,0.00021917,2]
[363140965,1748597447030,-971.59,0.00021917,2]
[363140966,1748597447040,-435.73,0.00021917,2]
[363140967,1748597447049,-420.0,0.00021917,2]
[363140968,1748597447059,-420.0,0.00021917,2]
[363140969,1748597447069,-1366.57,0.00021917,2]
[363140970,1748597447078,-3890.11,0.00021917,2]
[363140971,1748597447088,-1037.46,0.00021917,2]
[363140972,1748597447098,-420.0,0.00021917,2]
[363140973,1748597447108,-820.66,0.00021917,2]
[363140974,1748597447117,-420.0,0.00021917,2]
[363140975,1748597447127,-420.0,0.00021917,2]
[363140976,1748597447137,-724.98,0.00021917,2]
[363140977,1748597447148,-792.69,0.00021917,2]
[363140978,1748597447158,-420.0,0.00021917,2]
[363140979,1748597447168,-162.98277415,0.00021917,2]
[363140980,1748597447177,-629.12,0.00021917,2]
[363140981,1748597447187,-420.0,0.00021917,2]
[363140982,1748597447197,-165.81959145,0.00021917,2]
[363140983,1748597447207,-1856.86,0.00021917,2]
[363140984,1748597447217,-747.21,0.00021917,2]
[363140985,1748597447228,-663.93,0.00021917,2]
[363140986,1748597447238,-490.3,0.00021917,2]
[363140987,1748597447248,-458.35,0.00021917,2]
[363140988,1748597447257,-11008.06,0.00021917,2]
[363140989,1748597447268,-420.0,0.00021917,2]
[363140990,1748597447278,-2839.63,0.00021917,2]
[363140991,1748597447288,-1222.56,0.00021917,2]
[363140992,1748597447298,-1473.24,0.00021917,2]
[363140993,1748597447308,-420.0,0.00021917,2]
[363140994,1748597447318,-1363.71,0.00021917,2]
[363140995,1748597447328,-420.0,0.00021917,2]
[363140996,1748597447338,-420.0,0.00021917,2]
[363140997,1748597447353,-420.90185805,0.00021917,2]
[363140998,1748597447364,-420.0,0.00021917,2]
[363140999,1748597447374,-1052.27,0.00021917,2]
[363141000,1748597447385,-316.93293961,0.00021917,2]
[363141001,1748597447395,-420.0,0.00021917,2]
[363141002,1748597447405,-420.0,0.00021917,2]
[363141003,1748597447417,-11452.26,0.00021917,2]
[363141004,1748597447428,-420.0,0.00021917,2]
[363141005,1748597447437,-968.3,0.00021917,2]
[363141006,1748597447447,-608.81,0.00021917,2]
[363141007,1748597447457,-140097.14,0.00021917,2]
[363141008,1748597447467,-741.41,0.00021917,2]
[363141009,1748597447477,-787.22,0.00021917,2]
[363141010,1748597447487,-420.0,0.00021917,2]
[363141011,1748597447498,-420.0,0.00021917,2]
[363141012,1748597447508,-505.68514956,0.00021917,2]
[363141013,1748597447521,-420.0,0.00021917,2]
[363141014,1748597447530,-870.47,0.00021917,2]
[363141015,1748597447540,-420.0,0.00021917,2]
[363141016,1748597447550,-500.0,0.00021917,2]
[363141017,1748597447560,-9148.54,0.00021917,2]
[363141018,1748597447570,-1355.13,0.00021917,2]
[363141019,1748597447580,-3611.43,0.00021917,2]
[363141020,1748597447590,-420.0,0.00021917,2]
[363141021,1748597447600,-420.0,0.00021917,2]
[363141022,1748597447610,-1155.45,0.00021917,2]
[363141023,1748597447620,-420.0,0.00021917,2]
[363141024,1748597447629,-1267.24,0.00021917,2]
[363141025,1748597447639,-420.0,0.00021917,2]
[363141026,1748597447648,-420.0,0.00021917,2]
[363141027,1748597447658,-5161.79,0.00021917,2]
[363141028,1748597447668,-160.0,0.00021917,2]
[363141029,1748597447678,-677.75,0.00021917,2]
[363141030,1748597447688,-792.48,0.00021917,2]
[363141031,1748597447698,-2299.74,0.00021917,2]
[363141032,1748597447708,-420.0,0.00021917,2]
[363141033,1748597447718,-420.0,0.00021917,2]
[363141034,1748597447728,-420.0,0.00021917,2]
[363141035,1748597447737,-420.0,0.00021917,2]
[363141036,1748597447748,-1155.57,0.00021917,2]
[363141037,1748597447758,-420.0,0.00021917,2]
[363141038,1748597447769,-420.0,0.00021917,2]
[363141039,1748597448047,-420.0,0.00021917,2]
[363141040,1748597448057,-504.18,0.00021917,2]
[363141041,1748597448068,-505.88206369,0.00021917,2]
[363141042,1748597448078,-1041.69,0.00021917,2]
[363141043,1748597448097,-420.0,0.00021917,2]
[363141044,1748597448109,-7356.56,0.00021917,2]
[363141045,1748597448119,-1008.27,0.00021917,2]
[363141046,1748597448130,-730.95,0.00021917,2]
[363141047,1748597448140,-509.75,0.00021917,2]
[363141048,1748597448150,-493.51,0.00021917,2]
[363141049,1748597448160,-6272.12,0.00021917,2]
[363141050,1748597448170,-503.7571613,0.00021917,2]
[363141051,1748597448180,-420.0,0.00021917,2]
[363141052,1748597448190,-420.0,0.00021917,2]
[363141053,1748597448200,-733.79,0.00021917,2]
[363141054,1748597448211,-420.0,0.00021917,2]
[363141055,1748597448220,-518.88265141,0.00021917,2]
[363141056,1748597448229,-420.0,0.00021917,2]
[363141057,1748597448239,-420.0,0.00021917,2]
[363141058,1748597448250,-950.0,0.00021917,2]
[363141059,1748597448260,-2872.57,0.00021917,2]
[363141060,1748597448270,-302.0,0.00021917,2]
[363141061,1748597448281,-420.0,0.00021917,2]
[363141062,1748597448291,-420.0,0.00021917,2]
[363141063,1748597448303,-420.0,0.00021917,2]
[363141064,1748597448314,-420.0,0.00021917,2]
[363141065,1748597448324,-646.27,0.00021917,2]
[363141066,1748597448335,-2970.33,0.00021917,2]
[363141067,1748597448351,-500.0,0.00021918,2]
[363141068,1748597448363,-500.0,0.00021918,2]
[363141069,1748597448373,-500.0,0.00021918,2]
[363141070,1748597448383,-500.0,0.00021918,2]
[363141071,1748597448393,-500.0,0.00021918,2]
[363141072,1748597448403,-500.0,0.00021918,2]
[363141073,1748597448413,-500.0,0.00021918,2]
[363141074,1748597448422,-500.0,0.00021918,2]
[363141075,1748597448432,-500.0,0.00021918,2]
[363141076,1748597448441,-500.0,0.00021918,2]
[363141077,1748597448451,-500.0,0.00021918,2]
[363141078,1748597448461,-500.0,0.00021918,2]
[363141079,1748597448471,-500.0,0.00021918,2]
[363141080,1748597448482,-500.0,0.00021918,2]
[363141081,1748597448491,-500.0,0.00021918,2]
[363141082,1748597448501,-500.0,0.00021918,2]
[363141083,1748597448511,-500.0,0.00021918,2]
[363141084,1748597448521,-500.0,0.00021918,2]
[363141085,1748597448531,-500.0,0.00021918,2]
[363141086,1748597448541,-500.0,0.00021918,2]
[363141087,1748597448551,-406.25592852,0.00021918,2]
[363141088,1748597448561,-500.0,0.00021918,2]
[363141089,1748597448571,-500.0,0.00021918,2]
[363141090,1748597448581,-500.0,0.00021918,2]
[363141091,1748597448591,-500.0,0.00021918,2]
[363141092,1748597448601,-500.0,0.00021918,2]
[363141093,1748597448612,-500.0,0.00021918,2]
[363141094,1748597448621,-500.0,0.00021918,2]
[363141095,1748597448631,-500.0,0.00021918,2]
[363141096,1748597448641,-500.0,0.00021918,2]
[363141097,1748597448651,-500.0,0.00021918,2]
[363141098,1748597448661,-500.0,0.00021918,2]
[363141099,1748597448671,-500.0,0.00021918,2]
[363141100,1748597448680,-500.0,0.00021918,2]
[363141101,1748597448690,-155.59132897,0.00021918,2]
[363141102,1748597448700,-500.0,0.00021918,2]
[363141103,1748597448710,-169.10817303,0.00021918,2]
[363141104,1748597448719,-6637.79572113,0.00021937,2]
[363141105,1748597448729,-159.532442,0.00021973,2]
[363141106,1748597448739,-159.58238895,0.00021973,2]
[363141107,1748597448749,-159.57919208,0.00021973,2]
[363141108,1748597448759,-500.0,0.00021973,2]
[363141109,1748597448770,-159.56950675,0.00021973,2]
[363141110,1748597448780,-277.31747519,0.00021973,2]
[363141111,1748597448790,-216.20260541,0.00021973,2]
[363141112,1748597448800,-500.0,0.00021973,2]
[363141113,1748597448810,-159.54064977,0.00021973,2]
[363141114,1748597448820,-164.95176813,0.00021973,2]
[363141115,1748597448830,-170.06346039,0.00021973,2]
[363141116,1748597448839,-501.56194586,0.00021973,2]
[363141117,1748597448849,-159.55032542,0.00021973,2]
[363141118,1748597448858,-498.04109732,0.00021973,2]
[363141119,1748597448868,-527.84452092,0.00021973,2]
[363141120,1748597448878,-500.0,0.00021973,2]
[363141121,1748597448888,-500.0,0.00021973,2]
[363141122,1748597448898,-500.0,0.00021973,2]
[363141123,1748597448908,-500.0,0.00021973,2]
[363141124,1748597448918,-265.65280946,0.00021973,2]
[363141125,1748597448927,-500.0,0.00021973,2]
[363141126,1748597448937,-208.63092654,0.00021973,2]
[363141127,1748597448947,-500.0,0.00021973,2]
[363141128,1748597448957,-503.13693515,0.00021973,2]
[363141129,1748597448967,-501.36825752,0.00021973,2]
[363141130,1748597448976,-160.30334547,0.00021973,2]
[363141131,1748597448986,-500.0,0.00021973,2]
[363141132,1748597448995,-502.24751098,0.00021973,2]
[363141133,1748597449006,-159.57815874,0.00021973,2]
[363141134,1748597449016,-500.0,0.00021973,2]
[363141135,1748597449026,-500.0,0.00021973,2]
[363141136,1748597449035,-365.61741876,0.00021973,2]
[363141137,1748597449045,-500.0,0.00021973,2]
[363141138,1748597449055,-500.0,0.00021973,2]
[363141139,1748597449065,-1238.972712,0.0002198,3]
[363141140,1748597449075,-676.6571793,0.00021982,2]
[363141141,1748597449085,-166.0,0.00022,2]
[363141142,1748597449095,-989.27223219,0.00022014,2]
[363141143,1748597449104,-6637.79572113,0.00022014,2]
[363141144,1748597449114,-676.6571793,0.00022018,2]
[363141145,1748597449124,-676.6571793,0.00022055,2]
[363141146,1748597449134,-806.79,0.00022055,2]
[363141147,1748597449143,-806.64,0.00022055,2]
[363141148,1748597449153,-460.4,0.00022055,2]
[363141149,1748597449163,-920.24,0.00022055,2]
[363141150,1748597449173,-420.0,0.00022059,2]
[363141151,1748597449182,-1358.90392108,0.00022089,2]
[363141152,1748597449192,-11868.44749583,0.00022089,2]
[363141153,1748597449202,-6637.79572113,0.00022091,2]
[363141154,1748597449211,-676.6571793,0.00022091,2]
[363141155,1748597449221,-220.40905224,0.000221,2]
[363141156,1748597449230,-4019.60302899,0.000221,6]
[363141157,1748597449240,-4019.60302871,0.000221,6]
[363141158,1748597449250,-4019.60302871,0.000221,6]
[363141159,1748597449260,-4019.60302871,0.000221,6]
[363141160,1748597449270,-4019.60302871,0.000221,6]
[363141161,1748597449291,-4019.60302871,0.000221,6]
[363141162,1748597449302,-4019.60302871,0.000221,6]
[363141163,1748597449312,-4019.60302871,0.000221,6]
[363141164,1748597449322,-4019.60302871,0.00022107,6]
[363141165,1748597449331,-8263.48252436,0.0002211,2]
[363141166,1748597449342,-2250.790575,0.00022148,3]
[363141167,1748597449355,-639.46098401,0.00022173,2]
[363141168,1748597449366,-500.0,0.00022173,2]
[363141169,1748597449376,-500.76877422,0.00022173,2]
[363141170,1748597449386,-500.0,0.00022173,2]
[363141171,1748597449396,-500.0,0.00022173,2]
[363141172,1748597449406,-500.0,0.00022173,2]
[363141173,1748597449415,-500.0,0.00022173,2]
[363141174,1748597449427,-500.0,0.00022173,2]
[363141175,1748597449436,-359.05901085,0.00022173,2]
[363141176,1748597449446,-500.0,0.00022173,2]
[363141177,1748597449455,-500.0,0.00022173,2]
[363141178,1748597449465,-500.0,0.00022173,2]
[363141179,1748597449475,-835.49918477,0.00022189,2]
[363141180,1748597449485,-542696.26186171,0.00022189,2]
[363141181,1748597450067,-1687.1,0.00021917,2]
[363141182,1748597450077,-1472.8,0.00022189,2]
[363141183,1748597450202,-100092.75059919,0.00022189,2]
[363141184,1748597450213,-3439.0,0.00022189,2]
[363141185,1748597450809,-549.99528682,0.00021886,2]
[363141186,1748597450819,-610.2,0.00021917,2]
[363141187,1748597450828,-549.99528682,0.00022089,2]
[363141188,1748597450838,-42211.79773632,0.00022189,2]
[363141189,1748597451044,-583565.95703031,0.00022189,2]
[363141190,1748597451166,-4171.38801886,0.00022189,2]
[363141191,1748597451981,-31058.23853583,0.00021908,2]
[363141192,1748597451991,-171.10391974,0.00022089,2]
[363141193,1748597452000,-56407.43316843,0.00022189,2]
[363141194,1748597452012,-420.0,0.00022189,2]
[363141195,1748597452028,-333783.02346065,0.00022189,2]
[363141196,1748597452039,-400.98839819,0.00022189,2]
[363141197,1748597452126,-324.73794318,0.00022189,2]
[363144517,1748597774649,205.28,0.00016712,2]
[363144521,1748597805045,163.33704764,0.0002,5]
[363144523,1748597854169,827.26,0.00019121,2]
[363144525,1748598274311,193.46,0.000194,2]
[363144526,1748598332497,430.55706844,0.00023,30]
[363144527,1748598488457,186.79,0.00013699,2]
[363144534,1748598631474,-186.79,0.00020187,2]
[363144535,1748598631484,-250.0,0.00020398,2]
[363144536,1748598631494,-250.0,0.00020568,2]
[363144537,1748598631504,-150.0,0.00020568,7]
[363144538,1748598631513,-286.55,0.00020609,2]
[363144539,1748598631525,-164.85,0.00020788,2]
[363144540,1748598631535,-3068.26542663,0.00020828,2]
[363144541,1748598631559,-246.34457337,0.00020828,2]
[363144542,1748598631569,-62.44542663,0.00020855,2]
[363144543,1748598631597,-937.55457337,0.00020855,2]
[363144544,1748598631606,-233.82689344,0.00020894,2]
[363144545,1748598631618,-501.84968142,0.00020894,2]
[363144546,1748598631629,-464.32342514,0.00020894,2]
[363144547,1748598631639,-58.31563652,0.00020895,2]
[363144548,1748598631651,-241.68436348,0.00020895,2]
[363144549,1748598631660,-1853.57203652,0.00020896,2]
[363144550,1748598631672,-1555.3552193,0.00020896,2]
[363144551,1748598631699,-602.0,0.00020896,2]
[363144552,1748598631710,-270.48216146,0.00020896,2]
[363144553,1748598631729,-2537.85000536,0.00020896,2]
[363144554,1748598631740,-573.08006763,0.00020896,2]
[363144555,1748598631754,-288.10050973,0.00020896,2]
[363144556,1748598631764,-155.61,0.0002098,2]
[363144557,1748598631776,-185.1,0.00020986,2]
[363144558,1748598631786,-6057.6470818,0.00021,2]
[363144559,1748598631795,-200.0,0.00021,2]
[363144560,1748598631804,-221.02,0.00021015,2]
[363144561,1748598631814,-3401.52240848,0.0002117,2]
[363144562,1748598631827,-492.5527292,0.0002117,2]
[363144563,1748598631852,-3637.27719673,0.0002117,2]
[363144564,1748598631880,-1452.0,0.0002117,2]
[363145057,1748598637433,-584.31,0.00020533,2]
[363145058,1748598637443,-2130.11019074,0.0002117,2]
[363145059,1748598637453,-238.27,0.00021172,2]
[363145060,1748598637463,-6337.107,0.00021255,2]
[363145061,1748598637473,-207.4,0.00021255,2]
[363145062,1748598637483,-200.0,0.00021349,2]
[363145063,1748598637493,-200.0,0.00021359,2]
[363145064,1748598637503,-827.26,0.00021385,2]
[363145065,1748598637512,-150.0,0.00021452,2]
[363145066,1748598637522,-3192.02,0.000215,2]
[363145067,1748598637538,-3192.02,0.000215,2]
[363145068,1748598637548,-3192.02,0.000215,2]
[363145069,1748598637558,-3192.02,0.000215,2]
[363145070,1748598637568,-3192.02,0.000216,2]
[363145071,1748598637578,-1500.0,0.00021644,2]
[363145072,1748598637588,-9656.10485329,0.0002166,2]
[363145073,1748598637599,-200.0,0.00021698,2]
[363145074,1748598637609,-185.1,0.00021773,2]
[363145075,1748598637619,-2650.0,0.000218,2]
[363145076,1748598637628,-6656.04245351,0.00021816,2]
[363145077,1748598637638,-27952.41468231,0.00021816,2]
[363145078,1748598637647,-580.0,0.00021817,2]
[363145079,1748598637657,-1000.0,0.00021817,2]
[363145080,1748598637667,-2040.32320081,0.00021817,2]
[363145081,1748598637676,-6656.04245345,0.00021873,2]
[363145082,1748598637686,-27952.41468225,0.00021873,2]
[363145083,1748598637696,-812.6084848,0.000219,2]
[363145084,1748598637706,-812.60848476,0.000219,2]
[363145085,1748598637716,-812.60848476,0.000219,2]
[363145086,1748598637726,-812.60848476,0.000219,2]
[363145087,1748598637735,-151.0,0.00021904,2]
[363145088,1748598637745,-285.62628285,0.00021904,2]
[363145089,1748598637761,-215.86,0.00021904,2]
[363145090,1748598637771,-182.30982529,0.00021907,2]
[363145091,1748598637785,-495.69287178,0.00021913,2]
[363145092,1748598637795,-244.5098298,0.00021913,2]
[363145093,1748598637806,-500.0,0.00021913,2]
[363145094,1748598637816,-500.0,0.00021913,2]
[363145095,1748598637826,-500.0,0.00021913,2]
[363145096,1748598637837,-300.0,0.00021913,2]
[363145097,1748598637848,-410666.28695656,0.00021914,2]
[363145098,1748598637858,-150.0,0.00021916,2]
[363145099,1748598637868,-428.05,0.00021917,2]
[363145101,1748598637878,-460.79504359,0.00021917,2]
[363145104,1748598637888,-160.0,0.00021917,2]
[363145107,1748598637898,-420.0,0.00021917,2]
[363145109,1748598637908,-1000.0,0.00021917,2]
[363145111,1748598637917,-420.0,0.00021917,2]
[363145113,1748598637927,-498.92,0.00021917,2]
[363145115,1748598637936,-420.0,0.00021917,2]
[363145117,1748598637947,-420.0,0.00021917,2]